{"text_format":"2","workbook":"xlsx","n_sheets":2,"sheets":["Zmiany","Arkusz1"],"not_rendered":{"charts":0,"images":0,"macros":0,"external_links":0,"defined_names":0,"comments":0,"pivot_tables":0},"unopened":[],"bounds":{"document_bytes":16777216,"sheet_cells":100000,"run_cost":"one","rows_first":2000,"rows_last":500,"rows_between":2000,"halvings":0,"cell_chars":16384,"cell_head_chars":4096},"cells_cut":0,"cells_raw":0,"read":"whole","date_system":"1900"}

{"sheet":"Zmiany","index":0,"n_rows":17,"n_cols":12,"rows_kept":17,"cut":false,"hidden":true,"merged":[]}
[null,"Zmiany w formatkach"]
[]
[null,"Zestawienie odbiorów","Przekroczenia mocy","Energia bierna","Analiz dystr","Analiza obrót","Analiza danych","Analiza wyników (%)","Do prezentacji","Do raportu","Załączniki","Kto wprowadzał zmiany"]
["18.02.2013","- Formuła - okres objęty analizą\n- formatowanie Calibri na kol \"zalecana taryfa\"",null,null,"zablokowana wartość na taryfie G jeżeli nie ma obiektów np: O31=JEŻELI(O18=0;0;……)",null,null,null,"- grupowania (+) na kwocie netto i latach nie objętych analizą\n- formatowanie warunkowe do ostatniej tabeli",null,null,"Artur Stefaniak"]
["19.02.2013","-LP automatyczna",{"$nulls":6},"poprawa formatowania warunkowego do ostatniej tabeli",null,null,"Artur Stefaniak"]
["20.02.2013",{"$nulls":7},"Adresowanie cen z \"do pretacji\" do analiza obrót",null,null,"Artur Stefaniak"]
["20.02.2013",{"$nulls":7},"poprawa formatowania warunkowego do ostatniej tabeli",null,null,"Artur Stefaniak"]
["12.03.2013",{"$nulls":7},"raport zestawienia odbiorówi: bez nagłówków i przerw",null,null,"Artur Stefaniak"]
["2013.10.09",null,null,null,"Naprawione błędne naliczanie kwot na taryfie G w: stawka opłaty przejściowej zł/mc/kw, składnik stały stawki sieciowej zł/kw/mc",{"$nulls":6},"Krzysztof Targoński"]
["2014.01.08",null,null,null,"Nowa taryfa 2014",{"$nulls":6},"Izabela Krawczyk"]
["2014.01.09",{"$nulls":4},"Nowa taryfa 2014",{"$nulls":5},"Krzysztof Targoński"]
["2014.06.30",{"$nulls":5},"Poprawienie dat (teoretycznie)","Dodane kwoty brutto",null,null,"Dodanie oddziału dystrybucji","Maciej Burmajster"]
["2014.07.03","Zamienić PPE na nr licznika w generowanej liście",{"$nulls":9},"Krzysztof Targoński"]
["2014.07.16",{"$nulls":5},"Poprawienie zużyć dla taryf 3- i 4- strefowych",{"$nulls":4},"Krzysztof Targoński"]
["2014.07.29",null,"Korekta formuł","Korekta formuł",null,null,null,"Dodanie wyników %","Poprawka opisów tabel dla raportu %","Korekta formuł i tekstów","Dodanie numeru NIP","Krzysztof Targoński"]
["do zrobienia",{"$nulls":5},"Poprawienie stawek dystr wg uwag z maili",{"$nulls":4},"Krzysztof Targoński"]
["2014-09-04"]

{"sheet":"Arkusz1","index":1,"n_rows":21,"n_cols":15,"rows_kept":21,"cut":false,"hidden":false,"merged":[[10,3,10,5],[12,5,12,7],[12,8,12,12],[20,11,20,14],[12,0,13,0],[12,1,13,1],[12,2,13,2],[12,3,13,3],[12,4,13,4],[20,3,20,4],[19,3,19,4],[0,0,0,2],[1,0,1,14],[5,5,5,7],[5,8,5,12],[5,0,6,0],[5,1,6,1],[5,2,6,2],[5,3,6,3],[5,4,6,4],[3,3,3,5]]}
["A/DZI/ST.222.11.2022",{"$nulls":13},"Załącznik nr 2 "]
["Tabele asortymentowo-cenowe"]
[]
["Przyłącze gazowe 1",null,null,"PL 0031953576"]
[]
["Grupa taryfowa","Moc umowna\n(kWh/h)","Szacunkowe zapotrzebowanie na gaz \n(kWh)","Liczba miesięcy","Liczba dni","Cena za gaz (zł netto)",null,null,"Cena za usługę dystrybucyjną (zł netto)",{"$nulls":4},"Cena oferty netto \n(zł)","Cena oferty brutto \n(zł)"]
[{"$nulls":5},"Cena jednostkowa za gaz\n(zł/kWh)","Abonament \n(zł/m-c)","Razem (zł)\n(kol. 3 × kol. 6) + (kol. 4 × kol. 7)","Stawka opłaty stałej \n(zł/(kWh/h) za h)","Razem opłata stała (zł)\n(kol. 2 × kol. 5 × 24 h × kol. 9)","Stawka opłaty zmiennej \n(zł/kWh)","Razem opłata zmienna (zł)\n(kol. 3 × kol. 11)","Razem usługa dystrybucyjna (zł)\n(kol. 10 + kol. 12)","(kol. 8 \n+ kol. 13)","(kol. 14 + podatek VAT)"]
[{"$f":"\"-1-\"","v":"-1-"},{"$f":"\"-2-\"","v":"-2-"},{"$f":"\"-3-\"","v":"-3-"},{"$f":"\"-4-\"","v":"-4-"},{"$f":"\"-5-\"","v":"-5-"},{"$f":"\"-6-\"","v":"-6-"},{"$f":"\"-7-\"","v":"-7-"},{"$f":"\"-8-\"","v":"-8-"},{"$f":"\"-9-\"","v":"-9-"},{"$f":"\"-10-\"","v":"-10-"},{"$f":"\"-11-\"","v":"-11-"},{"$f":"\"-12-\"","v":"-12-"},{"$f":"\"-13-\"","v":"-13-"},{"$f":"\"-14-\"","v":"-14-"},{"$f":"\"-15-\"","v":"-15-"}]
["W-5",427,{"$f":"0.5*43450*11.235","v":244080.375},6,184,null,null,{"$f":"(C9*F9)+(D9*G9)","v":0},null,{"$f":"(B9*E9*24*I9)","v":0},null,{"$f":"C9*K9","v":0},{"$f":"J9+L9","v":0},{"$f":"H9+M9","v":0},{"$f":"N9*1","v":0}]
[]
["Przyłącze gazowe 2",null,null,"PL 0031944396"]
[]
["Grupa taryfowa","Moc umowna\n(kWh/h)","Szacunkowe zapotrzebowanie na gaz \n(kWh)","Liczba miesięcy","Liczba dni","Cena za gaz (zł netto)",null,null,"Cena za usługę dystrybucyjną (zł netto)",{"$nulls":4},"Cena oferty netto \n(zł)","Cena oferty brutto \n(zł)"]
[{"$nulls":5},"Cena jednostkowa za gaz\n(zł/kWh)","Abonament \n(zł/m-c)","Razem (zł)\n(kol. 3 × kol. 6) + (kol. 4 × kol. 7)","Stawka opłaty stałej \n(zł/(kWh/h) za h)","Razem opłata stała (zł)\n(kol. 2 × kol. 5 × 24 h × kol. 9)","Stawka opłaty zmiennej \n(zł/kWh)","Razem opłata zmienna (zł)\n(kol. 3 × kol. 11)","Razem usługa dystrybucyjna (zł)\n(kol. 10 + kol. 12)","(kol. 8 \n+ kol. 13)","(kol. 14 + podatek VAT)"]
[{"$f":"\"-1-\"","v":"-1-"},{"$f":"\"-2-\"","v":"-2-"},{"$f":"\"-3-\"","v":"-3-"},{"$f":"\"-4-\"","v":"-4-"},{"$f":"\"-5-\"","v":"-5-"},{"$f":"\"-6-\"","v":"-6-"},{"$f":"\"-7-\"","v":"-7-"},{"$f":"\"-8-\"","v":"-8-"},{"$f":"\"-9-\"","v":"-9-"},{"$f":"\"-10-\"","v":"-10-"},{"$f":"\"-11-\"","v":"-11-"},{"$f":"\"-12-\"","v":"-12-"},{"$f":"\"-13-\"","v":"-13-"},{"$f":"\"-14-\"","v":"-14-"},{"$f":"\"-15-\"","v":"-15-"}]
["W-5",252,{"$f":"0.5*37900*11.235","v":212903.25},6,184,null,null,{"$f":"(C16*F16)+(D16*G16)","v":0},null,{"$f":"(B16*E16)*24*I16","v":0},null,{"$f":"C16*K16","v":0},{"$f":"J16+L16","v":0},{"$f":"H16+M16","v":0},{"$f":"N16*1","v":0}]
[{"$nulls":12},"SUMA:"]
[]
[]
[{"$nulls":5},"zł Netto"," zł Brutto",{"$nulls":4},"  ____________________________________"]
[null,null,null,"Razem",null,{"$f":"N9+N16","v":0},{"$f":"O9+O16","v":0},{"$nulls":4},"Pieczęć i podpis osoby umocowanej  do reprezentowania Wykonawcy"]